[Event "*** Titled Tuesday 3|2 Blitz"]
[Site "Chess.com"]
[Date "2017.05.02"]
[Round "6"]
[White "vpantev"]
[Black "chessking2151"]
[Result "1-0"]
[WhiteElo "2463"]
[BlackElo "2347"]
[TimeControl "180+2"]
[EndTime "14:17:06 PDT"]
[Termination "vpantev won by resignation"]

1. d4 {[%clk 0:03:01]} 1... Nf6 {[%clk 0:02:59.6]} 2. Nf3 {[%clk 0:03:01.2]}
2... c5 {[%clk 0:03:00.8]} 3. d5 {[%clk 0:03:01.4]} 3... e6 {[%clk 0:03:01.6]}
4. c4 {[%clk 0:03:01.6]} 4... b5 {[%clk 0:03:02]} 5. cxb5 {[%clk 0:03:00.3]}
5... exd5 {[%clk 0:02:59.5]} 6. e3 {[%clk 0:02:58.5]} 6... Be7 {[%clk
0:02:59.7]} 7. Nc3 {[%clk 0:02:53.1]} 7... Bb7 {[%clk 0:03:00.5]} 8. Be2 {[%clk
0:02:53.9]} 8... O-O {[%clk 0:03:00.2]} 9. O-O {[%clk 0:02:54.5]} 9... d6 {[%clk
0:03:01.3]} 10. a3 {[%clk 0:02:50.2]} 10... a6 {[%clk 0:03:01]} 11. Bd2 {[%clk
0:02:45.9]} 11... axb5 {[%clk 0:03:00.8]} 12. Nxb5 {[%clk 0:02:46]} 12... Ne4
{[%clk 0:03:01.6]} 13. Nc3 {[%clk 0:02:44.6]} 13... Bf6 {[%clk 0:02:59.7]} 14.
Qc2 {[%clk 0:02:45.3]} 14... Nd7 {[%clk 0:02:57.7]} 15. Rfd1 {[%clk 0:02:44.7]}
15... Nb6 {[%clk 0:02:58.6]} 16. Be1 {[%clk 0:02:44.9]} 16... Qe7 {[%clk
0:02:56.3]} 17. Nd2 {[%clk 0:02:44.1]} 17... Nxc3 {[%clk 0:02:53.7]} 18. bxc3
{[%clk 0:02:44.6]} 18... d4 {[%clk 0:02:52.8]} 19. Bd3 {[%clk 0:02:23.5]} 19...
dxe3 {[%clk 0:02:44.2]} 20. fxe3 {[%clk 0:02:24.3]} 20... Qxe3+ {[%clk
0:02:42.8]} 21. Bf2 {[%clk 0:02:25.2]} 21... Qg5 {[%clk 0:02:27.3]} 22. Bxh7+
{[%clk 0:02:24.1]} 22... Kh8 {[%clk 0:02:27.7]} 23. Be4 {[%clk 0:02:24.8]} 23...
d5 {[%clk 0:02:19.2]} 24. Nf3 {[%clk 0:02:25.4]} 24... Qh6 {[%clk 0:02:16.4]}
25. Bf5 {[%clk 0:02:25]} 25... Na4 {[%clk 0:02:11]} 26. Be1 {[%clk 0:02:16.3]}
26... g6 {[%clk 0:02:06.5]} 27. Bd3 {[%clk 0:02:15.1]} 27... d4 {[%clk
0:02:00.9]} 28. Be4 {[%clk 0:01:55.4]} 28... Bxe4 {[%clk 0:01:49.3]} 29. Qxe4
{[%clk 0:01:56.2]} 29... Rae8 {[%clk 0:01:40.6]} 30. Qc6 {[%clk 0:01:53.8]}
30... Nb2 {[%clk 0:01:39.2]} 31. Qxf6+ {[%clk 0:01:54.1]} 31... Kg8 {[%clk
0:01:35]} 32. Bd2 {[%clk 0:01:49.1]} 32... Qh5 {[%clk 0:01:33.8]} 33. Re1 {[%clk
0:01:48.6]} 33... Nc4 {[%clk 0:01:28.7]} 34. Bf4 {[%clk 0:01:48]} 34... d3
{[%clk 0:01:26.3]} 35. Rad1 {[%clk 0:01:43.9]} 35... Nb2 {[%clk 0:01:26.2]} 36.
Be5 {[%clk 0:01:40]} 36... Qh6 {[%clk 0:01:17.2]} 37. Re4 {[%clk 0:01:35.3]}
37... Re6 {[%clk 0:01:16.4]} 38. Rh4 {[%clk 0:01:28.5]} 38... Rxf6 {[%clk
0:00:48.4]} 39. Rxh6 {[%clk 0:01:26.8]} 39... Kg7 {[%clk 0:00:49.9]} 40. Rb1
{[%clk 0:01:16.9]} 40... Kxh6 {[%clk 0:00:46.3]} 41. Bxf6 {[%clk 0:01:17.6]}
41... Nc4 {[%clk 0:00:46.8]} 42. Kf2 {[%clk 0:01:17.2]} 42... Re8 {[%clk
0:00:47.2]} 43. Re1 {[%clk 0:01:15.4]} 43... Rb8 {[%clk 0:00:38.2]} 44. Re4
{[%clk 0:01:14.5]} 44... Rb2+ {[%clk 0:00:39]} 45. Kg3 {[%clk 0:01:15.2]} 45...
g5 {[%clk 0:00:40]} 46. Rxc4 {[%clk 0:01:14.8]} 46... d2 {[%clk 0:00:41]} 47.
Nxd2 {[%clk 0:01:15.7]} 47... Rxd2 {[%clk 0:00:42.7]} 48. Rxc5 {[%clk
0:01:14.5]} 48... Kg6 {[%clk 0:00:44.1]} 49. Bxg5 {[%clk 0:01:15.1]} 49... Rd3+
{[%clk 0:00:46]} 50. Kf2 {[%clk 0:01:15.8]} 50... Rd2+ {[%clk 0:00:47]} 51. Bxd2
{[%clk 0:01:16.5]} 1-0

[Event "*** Titled Tuesday 3|2 Blitz"]
[Site "Chess.com"]
[Date "2017.05.02"]
[Round "6"]
[White "FearlessKing64"]
[Black "Vamostodorecto"]
[Result "1-0"]
[WhiteElo "2157"]
[BlackElo "2331"]
[TimeControl "180+2"]
[EndTime "14:17:16 PDT"]
[Termination "FearlessKing64 won by resignation"]

1. e4 {[%clk 0:03:02]} 1... e5 {[%clk 0:03:00.2]} 2. Nf3 {[%clk 0:03:02.9]} 2...
Nc6 {[%clk 0:03:01.7]} 3. Bc4 {[%clk 0:03:04.4]} 3... Nf6 {[%clk 0:03:02]} 4. d4
{[%clk 0:03:05.3]} 4... exd4 {[%clk 0:03:02.2]} 5. e5 {[%clk 0:03:07.2]} 5... d5
{[%clk 0:03:00.9]} 6. Bb5 {[%clk 0:03:08.1]} 6... Ne4 {[%clk 0:03:02.4]} 7. Nxd4
{[%clk 0:03:09.1]} 7... Bc5 {[%clk 0:03:03.5]} 8. Be3 {[%clk 0:03:09.7]} 8...
O-O {[%clk 0:03:03]} 9. Nxc6 {[%clk 0:03:07.3]} 9... bxc6 {[%clk 0:03:04.9]} 10.
Bxc5 {[%clk 0:03:08.6]} 10... Nxc5 {[%clk 0:02:36.8]} 11. Bxc6 {[%clk
0:03:08.8]} 11... Ba6 {[%clk 0:02:34.8]} 12. Nc3 {[%clk 0:03:06.4]} 12... Qg5
{[%clk 0:02:29.4]} 13. Qd4 {[%clk 0:02:31.9]} 13... Ne6 {[%clk 0:02:06.3]} 14.
Qe3 {[%clk 0:02:18]} 14... Nf4 {[%clk 0:01:44.6]} 15. O-O-O {[%clk 0:01:58.8]}
15... Rab8 {[%clk 0:01:27.6]} 16. g3 {[%clk 0:01:39.7]} 16... Nh3 {[%clk
0:01:21]} 17. Qxg5 {[%clk 0:01:30.7]} 17... Nxg5 {[%clk 0:01:22.9]} 18. Bxd5
{[%clk 0:01:31.2]} 18... Nh3 {[%clk 0:01:18.4]} 19. Rd2 {[%clk 0:01:24.7]} 19...
Ng5 {[%clk 0:01:07.3]} 20. f4 {[%clk 0:01:22.1]} 20... Ne6 {[%clk 0:01:07.5]}
21. Bxe6 {[%clk 0:01:18.8]} 21... fxe6 {[%clk 0:01:09.4]} 22. Rd7 {[%clk
0:01:17.6]} 22... Rbc8 {[%clk 0:01:05.4]} 23. Rhd1 {[%clk 0:01:17]} 23... Bb7
{[%clk 0:01:03.5]} 24. Re7 {[%clk 0:01:15.9]} 24... Rfe8 {[%clk 0:01:01.4]} 25.
Rxe8+ {[%clk 0:01:08.5]} 25... Rxe8 {[%clk 0:01:03.3]} 26. Rd7 {[%clk
0:01:09.3]} 26... Bf3 {[%clk 0:00:58.9]} 27. Rxc7 {[%clk 0:01:05.5]} 27... a6
{[%clk 0:00:58.9]} 28. Rd7 {[%clk 0:01:04.8]} 28... h5 {[%clk 0:00:57.9]} 29.
Rd6 {[%clk 0:01:05.7]} 29... a5 {[%clk 0:00:53.5]} 30. b3 {[%clk 0:01:06.1]}
30... Kf7 {[%clk 0:00:49.7]} 31. Kb2 {[%clk 0:01:03.4]} 31... h4 {[%clk
0:00:51.2]} 32. Na4 {[%clk 0:01:03.6]} 32... h3 {[%clk 0:00:51.1]} 33. Nc5
{[%clk 0:01:03.1]} 33... Rh8 {[%clk 0:00:44.9]} 34. Nxe6 {[%clk 0:01:00.7]}
34... Bg2 {[%clk 0:00:40.7]} 35. f5 {[%clk 0:00:53.7]} 35... Rh5 {[%clk
0:00:38]} 36. g4 {[%clk 0:00:50.8]} 36... Rh4 {[%clk 0:00:37.6]} 37. Rd7+ {[%clk
0:00:50.8]} 37... Ke8 {[%clk 0:00:36.8]} 38. Rxg7 {[%clk 0:00:49.9]} 38... Bf3
{[%clk 0:00:38.4]} 39. f6 {[%clk 0:00:48.2]} 1-0

[Event "*** Titled Tuesday 3|2 Blitz"]
[Site "Chess.com"]
[Date "2017.05.02"]
[Round "6"]
[White "stepanosinovsky"]
[Black "BigMak2500"]
[Result "0-1"]
[WhiteElo "2228"]
[BlackElo "2393"]
[TimeControl "180+2"]
[EndTime "14:17:24 PDT"]
[Termination "BigMak2500 won by checkmate"]

1. e4 {[%clk 0:03:02]} 1... e5 {[%clk 0:03:00.7]} 2. Nf3 {[%clk 0:03:03.5]} 2...
Nc6 {[%clk 0:03:01.5]} 3. Bb5 {[%clk 0:03:05]} 3... Nf6 {[%clk 0:03:01.4]} 4. d3
{[%clk 0:03:04.9]} 4... Bc5 {[%clk 0:03:01.6]} 5. O-O {[%clk 0:03:04.2]} 5...
Nd4 {[%clk 0:03:02.7]} 6. Nxd4 {[%clk 0:02:54.3]} 6... Bxd4 {[%clk 0:03:04.6]}
7. c3 {[%clk 0:02:54.4]} 7... Bb6 {[%clk 0:03:04.9]} 8. Bg5 {[%clk 0:02:51.3]}
8... c6 {[%clk 0:02:57.9]} 9. Bc4 {[%clk 0:02:47.4]} 9... h6 {[%clk 0:02:41.5]}
10. Bh4 {[%clk 0:02:30.4]} 10... g5 {[%clk 0:02:29.4]} 11. Bg3 {[%clk 0:02:31]}
11... d6 {[%clk 0:02:30.5]} 12. d4 {[%clk 0:02:27.5]} 12... exd4 {[%clk
0:02:29.7]} 13. e5 {[%clk 0:02:22.6]} 13... dxe5 {[%clk 0:02:24.5]} 14. Bxe5
{[%clk 0:02:12.2]} 14... O-O {[%clk 0:02:02.5]} 15. cxd4 {[%clk 0:01:08.1]}
15... Be6 {[%clk 0:02:00.6]} 16. Bxe6 {[%clk 0:01:07.4]} 16... fxe6 {[%clk
0:02:01.4]} 17. Nc3 {[%clk 0:01:02.5]} 17... Qe7 {[%clk 0:01:46.9]} 18. f4
{[%clk 0:00:57.6]} 18... Nd5 {[%clk 0:01:39.3]} 19. fxg5 {[%clk 0:00:38.9]}
19... Qxg5 {[%clk 0:01:21.9]} 20. Qd3 {[%clk 0:00:18.9]} 20... Ne3 {[%clk
0:01:15]} 21. Rxf8+ {[%clk 0:00:19.2]} 21... Rxf8 {[%clk 0:01:15.6]} 22. Qe2
{[%clk 0:00:20.2]} 22... Nf5 {[%clk 0:01:12.2]} 23. Rd1 {[%clk 0:00:19.5]} 23...
Rd8 {[%clk 0:01:02.7]} 24. Ne4 {[%clk 0:00:19.6]} 24... Qg6 {[%clk 0:00:54.3]}
25. Kh1 {[%clk 0:00:19.9]} 25... Bxd4 {[%clk 0:00:47.1]} 26. g4 {[%clk
0:00:12.8]} 26... Ne3 {[%clk 0:00:40]} 27. Rxd4 {[%clk 0:00:12.6]} 27... Rxd4
{[%clk 0:00:40.3]} 28. Nf6+ {[%clk 0:00:12.5]} 28... Kf7 {[%clk 0:00:39.5]} 29.
Bxd4 {[%clk 0:00:13.3]} 29... Qb1+ {[%clk 0:00:32.1]} 30. Qe1 {[%clk 0:00:08.7]}
30... Qxe1# {[%clk 0:00:32.6]} 0-1

[Event "*** Titled Tuesday 3|2 Blitz"]
[Site "Chess.com"]
[Date "2017.05.02"]
[Round "6"]
[White "Rating-Schmating"]
[Black "Wolverine_master"]
[Result "1-0"]
[WhiteElo "2206"]
[BlackElo "1942"]
[TimeControl "180+2"]
[EndTime "14:17:27 PDT"]
[Termination "Rating-Schmating won on time"]

1. e4 {[%clk 0:03:01.9]} 1... d5 {[%clk 0:02:32.4]} 2. exd5 {[%clk 0:03:02.6]}
2... Qxd5 {[%clk 0:02:33.5]} 3. Nc3 {[%clk 0:03:03.4]} 3... Qd6 {[%clk
0:02:34.9]} 4. g3 {[%clk 0:03:04.8]} 4... Nf6 {[%clk 0:02:36.3]} 5. Bg2 {[%clk
0:03:06.3]} 5... a6 {[%clk 0:02:34.5]} 6. Nge2 {[%clk 0:03:07.6]} 6... Nc6
{[%clk 0:02:35.7]} 7. O-O {[%clk 0:03:09.2]} 7... Bg4 {[%clk 0:02:37.1]} 8. d4
{[%clk 0:03:10.7]} 8... e5 {[%clk 0:02:33.5]} 9. dxe5 {[%clk 0:03:10.5]} 9...
Qxe5 {[%clk 0:02:10.8]} 10. Bf4 {[%clk 0:03:07.1]} 10... Qa5 {[%clk 0:02:08]}
11. Re1 {[%clk 0:02:55.4]} 11... Be7 {[%clk 0:02:08.1]} 12. Nd5 {[%clk
0:02:51.6]} 12... Nxd5 {[%clk 0:02:00.7]} 13. Qxd5 {[%clk 0:02:49.7]} 13... Qxd5
{[%clk 0:01:57.8]} 14. Bxd5 {[%clk 0:02:51.6]} 14... O-O-O {[%clk 0:01:19.1]}
15. Bxf7 {[%clk 0:02:44.9]} 15... Rhf8 {[%clk 0:01:19.4]} 16. Bb3 {[%clk
0:02:43.6]} 16... g5 {[%clk 0:01:09.4]} 17. Be3 {[%clk 0:02:39.5]} 17... Ne5
{[%clk 0:01:10.5]} 18. Nd4 {[%clk 0:02:31.4]} 18... c5 {[%clk 0:00:54.8]} 19.
Be6+ {[%clk 0:02:27.3]} 19... Bxe6 {[%clk 0:00:52.6]} 20. Nxe6 {[%clk
0:02:28.2]} 20... Nf3+ {[%clk 0:00:53.7]} 21. Kg2 {[%clk 0:02:28.2]} 21... Nxe1+
{[%clk 0:00:53.9]} 22. Rxe1 {[%clk 0:02:30.1]} 22... h6 {[%clk 0:00:51.3]} 23.
Nxf8 {[%clk 0:02:29.7]} 23... Rxf8 {[%clk 0:00:51.3]} 24. Rd1 {[%clk 0:02:29.8]}
24... Kc7 {[%clk 0:00:43]} 25. Rd5 {[%clk 0:02:28.3]} 25... Kc6 {[%clk
0:00:41.8]} 26. Re5 {[%clk 0:02:25.9]} 26... Bf6 {[%clk 0:00:28]} 27. Rxc5+
{[%clk 0:02:23.8]} 27... Kd6 {[%clk 0:00:27.4]} 28. c3 {[%clk 0:02:22.6]} 28...
b5 {[%clk 0:00:23.2]} 29. Rf5 {[%clk 0:02:20.1]} 29... Ke6 {[%clk 0:00:21.6]}
30. g4 {[%clk 0:02:21.3]} 30... Rd8 {[%clk 0:00:19]} 31. Rc5 {[%clk 0:02:20.2]}
31... Kd6 {[%clk 0:00:11.2]} 32. Bd4 {[%clk 0:02:19.3]} 32... Bxd4 {[%clk
0:00:10.5]} 33. cxd4 {[%clk 0:02:21.2]} 33... Re8 {[%clk 0:00:12]} 34. Rf5
{[%clk 0:02:21.3]} 34... Re4 {[%clk 0:00:10.8]} 35. Rf6+ {[%clk 0:02:22]} 35...
Kd5 {[%clk 0:00:11.6]} 36. Kf3 {[%clk 0:02:21.1]} 36... Rxd4 {[%clk 0:00:10.3]}
37. Rxa6 {[%clk 0:02:20.6]} 37... Rf4+ {[%clk 0:00:11.4]} 38. Kg3 {[%clk
0:02:22.1]} 38... Rb4 {[%clk 0:00:12.3]} 39. b3 {[%clk 0:02:23]} 39... Kd4
{[%clk 0:00:13.8]} 40. Rxh6 {[%clk 0:02:23.8]} 40... Kc3 {[%clk 0:00:10.9]} 41.
Rb6 {[%clk 0:02:23.1]} 41... Kb2 {[%clk 0:00:11.6]} 42. a4 {[%clk 0:02:24.7]}
42... Rxb3+ {[%clk 0:00:06.9]} 43. Kg2 {[%clk 0:02:22]} 43... bxa4 {[%clk
0:00:08.3]} 44. Ra6 {[%clk 0:02:23.4]} 44... a3 {[%clk 0:00:09.5]} 45. h4 {[%clk
0:02:05.2]} 45... gxh4 {[%clk 0:00:08.1]} 46. g5 {[%clk 0:02:03.5]} 46... h3+
{[%clk 0:00:09.2]} 47. Kh2 {[%clk 0:02:04.2]} 47... a2 {[%clk 0:00:10.7]} 48. g6
{[%clk 0:01:58.9]} 48... a1=Q {[%clk 0:00:08.4]} 49. Rxa1 {[%clk 0:01:56.4]}
49... Kxa1 {[%clk 0:00:10.3]} 50. f4 {[%clk 0:01:58.3]} 50... Rb4 {[%clk
0:00:02.5]} 51. Kxh3 {[%clk 0:01:53.5]} 51... Rxf4 {[%clk 0:00:02.3]} 52. g7
{[%clk 0:01:54.8]} 52... Rf3+ {[%clk 0:00:03.7]} 53. Kg2 {[%clk 0:01:55]} 1-0

[Event "*** Titled Tuesday 3|2 Blitz"]
[Site "Chess.com"]
[Date "2017.05.02"]
[Round "6"]
[White "oskariot"]
[Black "supertfc"]
[Result "1-0"]
[WhiteElo "2440"]
[BlackElo "2323"]
[TimeControl "180+2"]
[EndTime "14:17:42 PDT"]
[Termination "oskariot won on time"]

1. e4 {[%clk 0:03:00]} 1... e5 {[%clk 0:03:00.4]} 2. Nf3 {[%clk 0:03:01]} 2...
Nc6 {[%clk 0:03:01.2]} 3. Bb5 {[%clk 0:03:02.2]} 3... a6 {[%clk 0:03:01.6]} 4.
Ba4 {[%clk 0:03:03.5]} 4... Nf6 {[%clk 0:03:02.8]} 5. O-O {[%clk 0:03:05]} 5...
Be7 {[%clk 0:03:04.2]} 6. Re1 {[%clk 0:03:06.5]} 6... b5 {[%clk 0:03:05.2]} 7.
Bb3 {[%clk 0:03:07.9]} 7... d6 {[%clk 0:03:06.7]} 8. c3 {[%clk 0:03:09.3]} 8...
O-O {[%clk 0:03:08]} 9. h3 {[%clk 0:03:10.8]} 9... Nb8 {[%clk 0:03:09.5]} 10. d4
{[%clk 0:03:12.1]} 10... Nbd7 {[%clk 0:03:11.1]} 11. Nbd2 {[%clk 0:03:13.5]}
11... Bb7 {[%clk 0:03:12.2]} 12. Bc2 {[%clk 0:03:14.2]} 12... Re8 {[%clk
0:03:13.6]} 13. Nf1 {[%clk 0:03:15.5]} 13... Bf8 {[%clk 0:03:15.2]} 14. Ng3
{[%clk 0:03:17.1]} 14... g6 {[%clk 0:03:16.7]} 15. a4 {[%clk 0:03:18.5]} 15...
Bg7 {[%clk 0:03:16.4]} 16. Bd2 {[%clk 0:03:12.4]} 16... c5 {[%clk 0:03:13.9]}
17. d5 {[%clk 0:03:05.7]} 17... c4 {[%clk 0:03:14.3]} 18. Qc1 {[%clk 0:02:51.8]}
18... Nc5 {[%clk 0:03:03.8]} 19. Bh6 {[%clk 0:02:51]} 19... Qe7 {[%clk
0:02:51.4]} 20. Nh4 {[%clk 0:02:06.3]} 20... Qf8 {[%clk 0:02:34.3]} 21. Bxg7
{[%clk 0:01:56.8]} 21... Qxg7 {[%clk 0:02:27.5]} 22. Ngf5 {[%clk 0:01:54.9]}
22... gxf5 {[%clk 0:01:41.7]} 23. Nxf5 {[%clk 0:01:55.2]} 23... Qg6 {[%clk
0:01:42.8]} 24. Re3 {[%clk 0:01:48.4]} 24... Nh5 {[%clk 0:01:30.3]} 25. Bd1
{[%clk 0:01:31.3]} 25... Nxe4 {[%clk 0:01:02.1]} 26. Rxe4 {[%clk 0:00:53.3]}
26... Qxf5 {[%clk 0:01:01]} 27. Rg4+ {[%clk 0:00:54.6]} 27... Kh8 {[%clk
0:01:01.7]} 28. Rg5 {[%clk 0:00:55.9]} 28... Qe4 {[%clk 0:00:54.8]} 29. Rxh5
{[%clk 0:00:53.4]} 29... Rg8 {[%clk 0:00:41.6]} 30. Rg5 {[%clk 0:00:47.3]} 30...
Rxg5 {[%clk 0:00:09.7]} 31. Qxg5 {[%clk 0:00:46.6]} 31... Rg8 {[%clk 0:00:07.9]}
32. Qf6+ {[%clk 0:00:46.7]} 32... Rg7 {[%clk 0:00:09.4]} 33. Bf3 {[%clk
0:00:43.6]} 33... Qd3 {[%clk 0:00:05.2]} 34. axb5 {[%clk 0:00:44.2]} 34... axb5
{[%clk 0:00:04.5]} 35. Qxd6 {[%clk 0:00:41.8]} 1-0

[Event "*** Titled Tuesday 3|2 Blitz"]
[Site "Chess.com"]
[Date "2017.05.02"]
[Round "6"]
[White "Abrito99"]
[Black "martinique24"]
[Result "1-0"]
[WhiteElo "2296"]
[BlackElo "2415"]
[TimeControl "180+2"]
[EndTime "14:17:55 PDT"]
[Termination "Abrito99 won by resignation"]

1. e4 {[%clk 0:03:02]} 1... e5 {[%clk 0:02:59.6]} 2. Nf3 {[%clk 0:03:02.5]} 2...
Nc6 {[%clk 0:03:00.6]} 3. Bc4 {[%clk 0:03:03.6]} 3... Nf6 {[%clk 0:03:00.8]} 4.
d3 {[%clk 0:03:04.6]} 4... Be7 {[%clk 0:03:00.1]} 5. O-O {[%clk 0:03:04.6]} 5...
O-O {[%clk 0:03:00.2]} 6. Re1 {[%clk 0:03:05.6]} 6... h6 {[%clk 0:03:01]} 7. a4
{[%clk 0:03:06.4]} 7... Kh8 {[%clk 0:03:00.1]} 8. c3 {[%clk 0:03:04]} 8... d6
{[%clk 0:02:59.6]} 9. h3 {[%clk 0:03:04.3]} 9... a6 {[%clk 0:02:58.5]} 10. d4
{[%clk 0:03:03.6]} 10... Ng8 {[%clk 0:02:44.5]} 11. dxe5 {[%clk 0:02:53.7]}
11... dxe5 {[%clk 0:02:41.8]} 12. Bd5 {[%clk 0:02:54.7]} 12... Bd6 {[%clk
0:02:31.7]} 13. Nbd2 {[%clk 0:02:51]} 13... Nce7 {[%clk 0:02:26.4]} 14. Bb3
{[%clk 0:02:46.4]} 14... f5 {[%clk 0:01:38.1]} 15. exf5 {[%clk 0:02:45.6]} 15...
Bxf5 {[%clk 0:01:22]} 16. Nxe5 {[%clk 0:02:43.1]} 16... Bxe5 {[%clk 0:01:17.6]}
17. Rxe5 {[%clk 0:02:45]} 17... Ng6 {[%clk 0:01:18.7]} 18. Re1 {[%clk
0:02:38.7]} 18... Nf4 {[%clk 0:01:14.9]} 19. Nf3 {[%clk 0:02:32.2]} 19... Nd3
{[%clk 0:01:13.5]} 20. Re3 {[%clk 0:02:32.7]} 20... Bh7 {[%clk 0:00:57.9]} 21.
Bc2 {[%clk 0:02:26.1]} 21... Nxc1 {[%clk 0:00:51]} 22. Qxc1 {[%clk 0:02:28]}
22... Qf6 {[%clk 0:00:35.3]} 23. Bxh7 {[%clk 0:02:27.4]} 23... Kxh7 {[%clk
0:00:37.2]} 24. Qc2+ {[%clk 0:02:28.5]} 24... Kh8 {[%clk 0:00:38.7]} 25. Rae1
{[%clk 0:02:25.5]} 25... b5 {[%clk 0:00:34.1]} 26. Re6 {[%clk 0:02:25.4]} 26...
Qf5 {[%clk 0:00:32.1]} 27. Qb3 {[%clk 0:02:09.3]} 27... bxa4 {[%clk 0:00:24.3]}
28. Qxa4 {[%clk 0:02:11.2]} 28... a5 {[%clk 0:00:19.9]} 29. R6e5 {[%clk
0:01:58.6]} 29... Qf4 {[%clk 0:00:17.9]} 30. R5e4 {[%clk 0:01:48.6]} 30... Qd6
{[%clk 0:00:15.6]} 31. Rd4 {[%clk 0:01:48.2]} 31... Qf6 {[%clk 0:00:14.2]} 32.
Re5 {[%clk 0:01:46.3]} 32... Rab8 {[%clk 0:00:14.2]} 33. b3 {[%clk 0:01:41.8]}
33... Qg6 {[%clk 0:00:11.3]} 34. Kh2 {[%clk 0:01:41.5]} 34... Qc2 {[%clk
0:00:08.4]} 35. Qxa5 {[%clk 0:01:33.6]} 35... Rxb3 {[%clk 0:00:06.2]} 36. Qxc7
{[%clk 0:01:17.7]} 36... Rxf3 {[%clk 0:00:05.3]} 37. Re8 {[%clk 0:00:58.4]}
37... Qxf2 {[%clk 0:00:05.2]} 38. Rdd8 {[%clk 0:00:57.8]} 38... Qg3+ {[%clk
0:00:02.8]} 39. Qxg3 {[%clk 0:00:57.6]} 39... Rxg3 {[%clk 0:00:04.7]} 40. Rxg8+
{[%clk 0:00:58.1]} 40... Kh7 {[%clk 0:00:06.6]} 41. Kxg3 {[%clk 0:00:59.5]}
41... Rxc3+ {[%clk 0:00:07.7]} 42. Kh2 {[%clk 0:01:01.4]} 42... Rc2 {[%clk
0:00:07.1]} 43. Rge8 {[%clk 0:01:02.6]} 43... h5 {[%clk 0:00:07.9]} 44. Re7
{[%clk 0:01:03.7]} 1-0

[Event "*** Titled Tuesday 3|2 Blitz"]
[Site "Chess.com"]
[Date "2017.05.02"]
[Round "6"]
[White "ChristopherYoo"]
[Black "DryCounty"]
[Result "0-1"]
[WhiteElo "2238"]
[BlackElo "2462"]
[TimeControl "180+2"]
[EndTime "14:17:56 PDT"]
[Termination "DryCounty won by resignation"]

1. e4 {[%clk 0:03:02]} 1... e5 {[%clk 0:03:00]} 2. Nf3 {[%clk 0:03:02.6]} 2...
Nc6 {[%clk 0:03:01]} 3. Bb5 {[%clk 0:03:03.2]} 3... a6 {[%clk 0:03:01.8]} 4. Ba4
{[%clk 0:03:03.8]} 4... Nf6 {[%clk 0:03:02.6]} 5. O-O {[%clk 0:03:04.6]} 5...
Nxe4 {[%clk 0:03:03.6]} 6. d4 {[%clk 0:03:05]} 6... b5 {[%clk 0:03:05.2]} 7. Bb3
{[%clk 0:03:05.1]} 7... d5 {[%clk 0:03:06.7]} 8. dxe5 {[%clk 0:03:06.2]} 8...
Be6 {[%clk 0:03:08.2]} 9. c3 {[%clk 0:03:06.4]} 9... Nc5 {[%clk 0:03:08.8]} 10.
Bc2 {[%clk 0:03:06.2]} 10... Bg4 {[%clk 0:03:09.7]} 11. Bf4 {[%clk 0:03:02.5]}
11... Be7 {[%clk 0:03:09.2]} 12. Nbd2 {[%clk 0:03:01.3]} 12... Qd7 {[%clk
0:03:08.5]} 13. h3 {[%clk 0:02:57]} 13... Bh5 {[%clk 0:03:09.1]} 14. Nb3 {[%clk
0:02:40.8]} 14... Ne6 {[%clk 0:03:08.7]} 15. Bh2 {[%clk 0:02:37.6]} 15... Rd8
{[%clk 0:03:04.7]} 16. Nbd4 {[%clk 0:02:36.5]} 16... Ncxd4 {[%clk 0:03:04.2]}
17. cxd4 {[%clk 0:02:33.6]} 17... Bxf3 {[%clk 0:03:04.6]} 18. gxf3 {[%clk
0:02:05.3]} 18... Bg5 {[%clk 0:03:04.5]} 19. Bf5 {[%clk 0:02:04.2]} 19... g6
{[%clk 0:03:03.6]} 20. Bxe6 {[%clk 0:02:00.9]} 20... fxe6 {[%clk 0:03:04.1]} 21.
f4 {[%clk 0:02:00.8]} 21... Be7 {[%clk 0:03:03.3]} 22. Qg4 {[%clk 0:01:54.4]}
22... O-O {[%clk 0:03:03.6]} 23. Kh1 {[%clk 0:01:48.5]} 23... Rf5 {[%clk
0:03:03.7]} 24. Rg1 {[%clk 0:01:48.9]} 24... c5 {[%clk 0:03:00.6]} 25. dxc5
{[%clk 0:01:37.9]} 25... Bxc5 {[%clk 0:03:01.3]} 26. Rg2 {[%clk 0:01:18]} 26...
d4 {[%clk 0:02:59.3]} 27. h4 {[%clk 0:01:13.5]} 27... Kh8 {[%clk 0:02:58.5]} 28.
Rd1 {[%clk 0:01:05.2]} 28... d3 {[%clk 0:02:58.1]} 29. Qf3 {[%clk 0:01:00]}
29... Qd5 {[%clk 0:02:57.6]} 30. Qxd5 {[%clk 0:00:47.2]} 30... Rxd5 {[%clk
0:02:58.4]} 31. Rg3 {[%clk 0:00:43]} 31... d2 {[%clk 0:02:54.3]} 32. Rf3 {[%clk
0:00:39.3]} 32... Rf7 {[%clk 0:02:40.1]} 33. Kg2 {[%clk 0:00:38.8]} 33... Bb4
{[%clk 0:02:36.2]} 34. Kf1 {[%clk 0:00:38.8]} 34... Rxe5 {[%clk 0:02:24.3]} 35.
fxe5 {[%clk 0:00:33]} 35... Rxf3 {[%clk 0:02:24.7]} 36. Ke2 {[%clk 0:00:34.2]}
36... Rf7 {[%clk 0:02:08.3]} 37. a3 {[%clk 0:00:32]} 37... Ba5 {[%clk
0:01:56.3]} 38. b4 {[%clk 0:00:31.6]} 38... Bb6 {[%clk 0:01:56.8]} 39. Bg3
{[%clk 0:00:31.8]} 39... Rd7 {[%clk 0:01:57.2]} 40. Rxd2 {[%clk 0:00:30.2]}
40... Rxd2+ {[%clk 0:01:57.8]} 41. Kxd2 {[%clk 0:00:31]} 41... Kg7 {[%clk
0:01:57.1]} 42. Kd3 {[%clk 0:00:31.6]} 42... Kh6 {[%clk 0:01:56.9]} 43. Ke4
{[%clk 0:00:31]} 43... Kh5 {[%clk 0:01:57.9]} 44. f3 {[%clk 0:00:27.9]} 44...
Bd8 {[%clk 0:01:58.7]} 45. Kd4 {[%clk 0:00:21.1]} 45... Bxh4 {[%clk 0:01:58.9]}
46. Bf4 {[%clk 0:00:13.1]} 46... Bf2+ {[%clk 0:01:59.3]} 47. Kd3 {[%clk
0:00:13.9]} 47... g5 {[%clk 0:01:58.4]} 48. Bd2 {[%clk 0:00:13.5]} 48... Kg6
{[%clk 0:01:58.3]} 49. Ke4 {[%clk 0:00:14.3]} 49... h5 {[%clk 0:01:58.3]} 50. f4
{[%clk 0:00:13]} 50... gxf4 {[%clk 0:01:56.6]} 51. Bxf4 {[%clk 0:00:13.4]} 51...
h4 {[%clk 0:01:55.8]} 52. Kf3 {[%clk 0:00:13.6]} 52... Bd4 {[%clk 0:01:54.6]}
53. Kg4 {[%clk 0:00:11.1]} 53... Bb2 {[%clk 0:01:55.3]} 54. Kxh4 {[%clk
0:00:08.3]} 54... Kf5 {[%clk 0:01:56.4]} 55. Bg5 {[%clk 0:00:06.2]} 55... Bxa3
{[%clk 0:01:57]} 56. Be7 {[%clk 0:00:07]} 56... Kxe5 {[%clk 0:01:56.3]} 57. Kg5
{[%clk 0:00:08.1]} 57... Kd5 {[%clk 0:01:57.1]} 58. Kf4 {[%clk 0:00:08.4]} 58...
Kc4 {[%clk 0:01:57.2]} 59. Ke5 {[%clk 0:00:09.1]} 59... Bxb4 {[%clk 0:01:56.7]}
60. Bg5 {[%clk 0:00:08.8]} 60... a5 {[%clk 0:01:56.4]} 61. Kxe6 {[%clk
0:00:09.1]} 61... a4 {[%clk 0:01:57.4]} 62. Bc1 {[%clk 0:00:09.9]} 62... a3
{[%clk 0:01:56.4]} 63. Kd7 {[%clk 0:00:10.6]} 63... a2 {[%clk 0:01:57.2]} 64.
Bb2 {[%clk 0:00:11.6]} 64... Bc3 {[%clk 0:01:58.2]} 0-1